[Event "FIDE WCCC G12 2018"]
[Site "Santiago de Compostela"]
[Date "2018.11.08"]
[Round "4"]
[White "Butenandt, Svenja"]
[Black "Cai, Jinru"]
[Result "1/2-1/2"]
[ECO "E93"]
[WhiteElo "1775"]
[BlackElo "1578"]
[Annotator "NA RC"]
[PlyCount "101"]
[EventDate "2018.11.04"]
[EventType "swiss"]
[EventCountry "ESP"]
[SourceTitle "playchess.com"]
[Source "ChessBase"]
[SourceQuality "1"]
[TimeControl "40/5400+30:1800+30"]

1. d4 {[%emt 0:00:00]} g6 {[%emt 0:00:00]} 2. c4 {[%emt 0:00:00]} Nf6 {[%emt 0:00:00]} 3. Nc3 {[%emt 0:00:00]} Bg7 {[%emt 0:00:00]} 4. e4 {[%emt 0:00:00]} d6 {[%emt 0:00:00]} 5. Nf3 {[%emt 0:00:03]} O-O {[%emt 0:00:00]} 6. Be2 {[%emt 0:00:03]} e5 {[%emt 0:00:40]} 7. d5 {[%emt 0:00:16]} Nbd7 {[%emt 0:00:11]} 8. O-O {[%emt 0:00:16]} Ne8 {[%emt 0:00:42]} 9. Qc2 {[%emt 0:01:39]} f5 {[%emt 0:03:59]} 10. exf5 {[%emt 0:06:55]} gxf5 {[%emt 0:00:24]} 11. Bg5 {[%emt 0:00:45]} Ndf6 {[%emt 0:00:07]} 12. b4 {[%emt 0:09:42]} h6 {[%emt 0:02:09]} 13. Bd2 {[%emt 0:05:07]} Nh7 {[%emt 0:13:46]} 14. Qc1 {[%emt 0:10:39]} Qf6 {[%emt 0:01:22]} 15. c5 {[%emt 0:12:29]} e4 {[%emt 0:03:10]} 16. Ne1 {[%emt 0:00:32]} f4 {[%emt 0:04:13]} 17. Rb1 {[%emt 0:07:52]} Bf5 {[%emt 0:08:41]} 18. Rb3 {[%emt 0:05:57]} f3 {[%emt 0:02:58]} 19. Bc4 {[%emt 0:06:30]} Qg6 {[%emt 0:11:52]} 20. Kh1 {[%emt 0:03:18]} fxg2+ {[%emt 0:06:24]} 21. Nxg2 {[%emt 0:02:56]} Bg4 {[%emt 0:05:29]} 22. Be2 {[%emt 0:09:00]} Bf3 {[%emt 0:13:45]} 23. Bxf3 {[%emt 0:04:33]} exf3 {[%emt 0:00:07]} 24. Ne1 {[%emt 0:00:34]} Qh5 {[%emt 0:01:52]} 25. Rg1 {[%emt 0:01:35]} Kh8 {[%emt 0:00:23]} 26. Ne4 {[%emt 0:01:05]} Qxd5 {[%emt 0:01:24]} 27. Ng3 {[%emt 0:01:02]} dxc5 {[%emt 0:05:35]} 28. bxc5 {[%emt 0:01:00]} Nef6 {[%emt 0:01:11]} 29. Rd3 {[%emt 0:06:06]} Ng4 {[%emt 0:02:52]} 30. Be3 {[%emt 0:00:24]} Qxa2 {[%emt 0:00:15]} 31. Nh5 {[%emt 0:03:00]} Nxe3 {[%emt 0:03:21]} 32. Qxe3 {[%emt 0:00:15]} Rae8 {[%emt 0:00:26]} 33. Qc1 {[%emt 0:00:37]} Qb2 {[%emt 0:02:17]} 34. Nxf3 {[%emt 0:01:21]} Qxc1 {[%emt 0:00:14]} 35. Rxc1 {[%emt 0:00:03]} Nf6 {[%emt 0:00:37]} 36. Nxg7 {[%emt 0:00:17]} Kxg7 {[%emt 0:00:05]} 37. Rg1+ {[%emt 0:00:14]} Kh7 {[%emt 0:00:38]} 38. Nh4 {[%emt 0:01:05]} Rg8 {[%emt 0:00:30]} 39. Rf3 {[%emt 0:00:22]} Rxg1+ {[%emt 0:00:15]} 40. Kxg1 {[%emt 0:00:00]} Kg7 {[%emt 0:00:00]} 41. Ra3 {[%emt 0:03:22]} a6 {[%emt 0:01:49]} 42. c6 {[%emt 0:02:19]} b6 {[%emt 0:01:04]} 43. Rxa6 {[%emt 0:00:29]} Re4 {[%emt 0:01:02]} 44. Nf5+ {[%emt 0:01:48]} Kg6 {[%emt 0:00:08]} 45. Ne3 {[%emt 0:00:27]} Re6 {[%emt 0:00:21]} 46. Nc4 {[%emt 0:01:20]} Kf5 {[%emt 0:00:26]} 47. Ne3+ {[%emt 0:00:51]} Ke4 {[%emt 0:00:18]} 48. Ra4+ {[%emt 0:00:25]} Kf3 {[%emt 0:00:37]} 49. Rh4 {[%emt 0:01:13]} h5 {[%emt 0:04:58]} 50. Rh3+ {[%emt 0:01:06]} Ke4 {[%emt 0:00:39]} 51. Rh4+ {[%emt 0:01:12] Kd5} 1/2-1/2

[Event "FIDE WCCC G12 2018"]
[Site "Santiago de Compostela"]
[Date "2018.11.08"]
[Round "4"]
[White "Sevcikova, Lucia"]
[Black "Wagner, Margarethe"]
[Result "1-0"]
[ECO "E32"]
[WhiteElo "1768"]
[BlackElo "1766"]
[Annotator "NA RC"]
[PlyCount "95"]
[EventDate "2018.11.04"]
[EventType "swiss"]
[EventCountry "ESP"]
[SourceTitle "playchess.com"]
[Source "ChessBase"]
[SourceQuality "1"]
[TimeControl "40/5400+30:1800+30"]

1. d4 {[%emt 0:00:00]} Nf6 {[%emt 0:00:00]} 2. c4 {[%emt 0:00:00]} e6 {[%emt 0:00:20]} 3. Nc3 {[%emt 0:00:00]} Bb4 {[%emt 0:00:14]} 4. Qc2 {[%emt 0:00:00]} b6 {[%emt 0:02:05]} 5. e4 {[%emt 0:00:41]} Bb7 {[%emt 0:02:24]} 6. f3 {[%emt 0:06:11]} d6 {[%emt 0:02:51]} 7. Qa4+ {[%emt 0:03:41]} Nc6 {[%emt 0:06:20]} 8. d5 {[%emt 0:00:38]} exd5 {[%emt 0:03:12]} 9. cxd5 {[%emt 0:00:32]} Bxc3+ {[%emt 0:24:33]} 10. bxc3 {[%emt 0:00:04]} a6 {[%emt 0:04:04]} 11. dxc6 {[%emt 0:00:36]} b5 {[%emt 0:00:15]} 12. Qd4 {[%emt 0:01:43]} Bxc6 {[%emt 0:01:16]} 13. Bg5 {[%emt 0:01:28]} Qe7 {[%emt 0:01:42]} 14. Bxf6 {[%emt 0:02:00]} gxf6 {[%emt 0:00:10]} 15. Ne2 {[%emt 0:01:51]} Rg8 {[%emt 0:01:40]} 16. Kf2 {[%emt 0:08:07]} Qe5 {[%emt 0:03:29]} 17. Qxe5+ {[%emt 0:06:47]} fxe5 {[%emt 0:00:15]} 18. Ng3 {[%emt 0:02:52]} Bd7 {[%emt 0:02:18]} 19. Nf5 {[%emt 0:05:16]} Bxf5 {[%emt 0:03:45]} 20. exf5 {[%emt 0:00:39]} Rb8 {[%emt 0:03:12]} 21. Bd3 {[%emt 0:03:06]} d5 {[%emt 0:02:26]} 22. f6 {[%emt 0:06:03]} h6 {[%emt 0:02:13]} 23. Rae1 {[%emt 0:01:27]} Kd7 {[%emt 0:07:13]} 24. Rxe5 {[%emt 0:00:57]} Kd6 {[%emt 0:03:25]} 25. Rhe1 {[%emt 0:00:55]} Rbf8 {[%emt 0:01:14]} 26. h4 {[%emt 0:01:45]} Rh8 {[%emt 0:02:11]} 27. Re7 {[%emt 0:00:38]} h5 {[%emt 0:01:35]} 28. Bf5 {[%emt 0:01:26]} Rh6 {[%emt 0:01:43]} 29. Rd7+ {[%emt 0:00:35]} Kc6 {[%emt 0:00:59]} 30. Ree7 {[%emt 0:00:23]} Rxf6 {[%emt 0:01:14]} 31. Rxc7+ {[%emt 0:00:48]} Kb6 {[%emt 0:00:55]} 32. Bc2 {[%emt 0:01:59]} Rc6 {[%emt 0:02:37]} 33. Rxc6+ {[%emt 0:00:43]} Kxc6 {[%emt 0:00:07]} 34. Re5 {[%emt 0:00:45]} Kc5 {[%emt 0:03:32]} 35. Rxh5 {[%emt 0:04:11]} Kc4 {[%emt 0:00:37]} 36. Bb3+ {[%emt 0:00:24]} Kxc3 {[%emt 0:00:16]} 37. Rxd5 {[%emt 0:00:48]} Rh8 {[%emt 0:01:31]} 38. g3 {[%emt 0:00:19]} Kb4 {[%emt 0:01:12]} 39. Rf5 {[%emt 0:00:41]} a5 {[%emt 0:00:46]} 40. Bxf7 {[%emt 0:00:00]} a4 {[%emt 0:00:00]} 41. h5 {[%emt 0:01:28]} a3 {[%emt 0:02:20]} 42. Bb3 {[%emt 0:00:41]} Rh6 {[%emt 0:01:04]} 43. g4 {[%emt 0:00:19]} Rh8 {[%emt 0:00:36]} 44. Rf6 {[%emt 0:00:24]} Kc3 {[%emt 0:01:08]} 45. Rc6+ {[%emt 0:00:35]} Kd4 {[%emt 0:00:44]} 46. Re6 {[%emt 0:00:15]} Kc3 {[%emt 0:00:58]} 47. h6 {[%emt 0:00:10]} Rh7 {[%emt 0:00:36]} 48. g5 1-0

[Event "FIDE WCCC G12 2018"]
[Site "Santiago de Compostela"]
[Date "2018.11.08"]
[Round "4"]
[White "Dakic, Marta"]
[Black "Kairbekova, Amina"]
[Result "0-1"]
[ECO "C00"]
[WhiteElo "1756"]
[BlackElo "1939"]
[Annotator "NA RC"]
[PlyCount "134"]
[EventDate "2018.11.04"]
[EventType "swiss"]
[EventCountry "ESP"]
[SourceTitle "playchess.com"]
[Source "ChessBase"]
[SourceQuality "1"]
[TimeControl "40/5400+30:1800+30"]

{[%evp 15,133,-5,-13,32767,-6,32767,32767,-36,-17,-19,-15,-59,-52,-66,32767,-194,-131,-140,-127,-159,-36,-34,-33,-109,-108,-110,-40,-32,-9,-135,-125,-125,-113,-165,-165,-179,-102,-90,-101,-96,-96,-143,-133,-136,-126,-144,-134,-132,-126,-167,-152,-160,-131,-134,-131,-129,-136,-127,32767,32767,-141,-135,-139,32767,32767,32767,32767,32767,32767,32767,-209,-190,32767,-200,32767,-201,-212,-204,-204,-250,-347,-640,-734,-731,-775,32767,32767,-716,-954,-530,-763,-671,-1022,-1270,-1466,-1388,-2320,-1135,-1097,-887,-2027,32767,32767,-1817,32767,-5181,32767,32767,32767,32767,-6140,-29986,32767,-6731,32767,-29989,-29990,-29995,-29996,-29998]} 1. e4 {[%emt 0:00:00]} e6 {[%emt 0:00:00]} 2. Qe2 {[%emt 0:00:00]} Nc6 {[%emt 0:00:35]} 3. Nf3 {[%emt 0:00:49]} e5 {[%emt 0:00:40]} 4. g3 {[%emt 0:01:22]} g6 {[%emt 0:00:18] C00: Französische Verteidigung (Seltene Züge)} (4... d6 5. Bg2 g6 6. O-O Bg7 7. c3 Nge7 8. b4 a6 9. a4 O-O 10. d3 h6 11. Bb2 Be6 12. Nbd2 {½-½ (52) Zvjaginsev,V (2643)-Usmanov,V (2459) Sochi 2017}) 5. Bg2 {[%emt 0:00:21]} Bg7 {[%emt 0:00:08]} 6. d3 {[%emt 0:00:52]} Nge7 {[%emt 0:00:06]} 7. c3 $146 {[%emt 0:01:25]} ({Vorgänger:} 7. O-O O-O 8. c3 d6 9. Na3 f5 10. Bg5 f4 11. d4 h6 12. Bxe7 Qxe7 {½-½ (75) Liu,C (2361)-Alvarez Pedraza,A (2484) Barbera del Valles 2016}) 7... O-O {[%emt 0:00:07]} 8. Qc2 {[%emt 0:02:57]} d5 {[%emt 0:00:38]} 9. O-O {[%emt 0:00:22]} a5 {[%emt 0:01:57]} 10. a4 {[%emt 0:03:43]} d4 {[%emt 0:01:05]} 11. Nbd2 {[%emt 0:05:55]} h6 {[%emt 0:00:37]} 12. Nc4 {[%emt 0:03:10]} Be6 {[%emt 0:02:56]} 13. Nfd2 {[%emt 0:06:27]} Qd7 {[%emt 0:02:41]} 14. Na3 {[%emt 0:12:04]} dxc3 {[%emt 0:02:24]} 15. Qxc3 $2 {[%emt 0:05:30]} (15. bxc3 $11 Rfd8 16. Nb5) 15... Rfd8 {[%emt 0:02:16]} 16. Nb5 {[%emt 0:00:57]} Rac8 {[%emt 0:01:40]} 17. Nb3 {[%emt 0:05:52]} Bxb3 {[%emt 0:01:22]} ({Inferior is} 17... Qxd3 18. Qxd3 Rxd3 19. Nc5 $14) ({Black should try} 17... b6 $19 18. Rd1 Bg4) 18. Qxb3 {[%emt 0:00:05]} Qxd3 {[%emt 0:01:58]} 19. Qa2 {[%emt 0:01:31]} ({Better is} 19. Qxd3 $15 Rxd3 20. Be3) 19... Nb4 {[%emt 0:05:49]} 20. Qa3 {[%emt 0:01:42]} c6 {[%emt 0:01:08]} (20... Qd7 $17 21. Qc3 Nec6) 21. Qxd3 $1 {[%emt 0:03:24]} Rxd3 {[%emt 0:00:18]} 22. Nc3 {[%emt 0:00:17]} (22. Na3 $1 $11 {was the only way to keep the balance.}) 22... Nc2 {[%emt 0:01:20]} 23. Rb1 {[%emt 0:00:39]} Rcd8 {[%emt 0:00:58]} 24. f3 {[%emt 0:04:13]} Nc8 {[%emt 0:01:15]} 25. Rf2 {[%emt 0:01:29]} Nb4 {[%emt 0:02:15]} (25... Nd4 $19 26. f4 exf4 27. Bxf4 Ne6) 26. Bf1 {[%emt 0:01:37]} R3d7 {[%emt 0:00:04]} 27. Bh3 {[%emt 0:01:03]} Rd6 {[%emt 0:04:22]} 28. Bf1 {[%emt 0:02:35]} Nd3 {[%emt 0:01:14]} 29. Rd2 Nxc1 {[%emt 0:02:30]} 30. Rxd6 {[%emt 0:01:12]} Rxd6 {[%emt 0:00:04]} 31. Rxc1 {[%emt 0:00:06]} Nb6 {[%emt 0:00:07]} 32. Rc2 {[%emt 0:00:35]} Rd4 {[%emt 0:00:26]} 33. b3 {[%emt 0:00:05]} Rb4 {[%emt 0:00:18]} 34. Rb2 {[%emt 0:01:15]} Bf8 {[%emt 0:02:31]} 35. Rb1 {[%emt 0:03:58]} Kg7 {[%emt 0:03:19]} 36. Be2 {[%emt 0:01:36]} f5 {[%emt 0:00:32]} 37. Kf2 {[%emt 0:01:28]} fxe4 {[%emt 0:01:00]} 38. fxe4 {[%emt 0:00:12]} Bc5+ {[%emt 0:00:40]} 39. Ke1 {[%emt 0:00:23]} Rd4 {[%emt 0:00:09]} 40. Kf1 {[%emt 0:00:00]} Bb4 {[%emt 0:00:00]} 41. Rc1 {[%emt 0:06:41]} Bxc3 {[%emt 0:01:38]} 42. Rxc3 {[%emt 0:00:04]} Rxe4 {[%emt 0:00:09]} 43. Rc5 {[%emt 0:02:29]} Kf6 {[%emt 0:01:34]} 44. Rxa5 {[%emt 0:02:02]} Rb4 {[%emt 0:00:04]} 45. Bd1 {[%emt 0:03:17]} Nd5 {[%emt 0:00:06]} 46. Kf2 {[%emt 0:00:12]} e4 {[%emt 0:01:39]} 47. Rc5 {[%emt 0:00:30]} (47. Ra8 $142) 47... Ke5 {[%emt 0:01:02]} 48. Bc2 $2 {[%emt 0:03:32]} (48. Ra5) 48... Kd4 {[%emt 0:01:00]} 49. Rc4+ {[%emt 0:00:26]} Rxc4 {[%emt 0:00:25]} 50. bxc4 {[%emt 0:00:07]} Nb4 {[%emt 0:00:20]} 51. Bb1 {[%emt 0:02:28]} Nd3+ {[%emt 0:00:07]} 52. Ke2 {[%emt 0:00:09]} Ne5 {[%emt 0:00:08]} 53. Bc2 {[%emt 0:01:55]} Nxc4 {[%emt 0:00:37]} 54. h3 {[%emt 0:00:29]} g5 {[%emt 0:00:48]} 55. Bb1 {[%emt 0:01:58]} Ne3 {[%emt 0:00:34]} 56. Ba2 {[%emt 0:02:04]} Nf5 {[%emt 0:00:17]} 57. g4 {[%emt 0:00:26]} Ne3 {[%emt 0:00:30]} 58. Be6 {[%emt 0:00:51]} Nd5 {[%emt 0:00:09]} 59. Ke1 {[%emt 0:01:14]} Nf4 {[%emt 0:00:08]} 60. Bc8 {[%emt 0:00:24]} b6 {[%emt 0:00:28]} 61. Bb7 {[%emt 0:01:05]} c5 {[%emt 0:00:12]} 62. Ba6 {[%emt 0:01:01]} c4 $19 {[%emt 0:00:05]} (62... Nxh3 $142 63. Bf1 Nf4 64. Kd2 c4 65. Kc2 e3 66. Kd1 {[#]} e2+ $1 {[%mdl 512]} 67. Bxe2 Nxe2 68. Kd2 Nf4 69. a5 c3+ 70. Kc2 bxa5 71. Kb3 Kd3 72. Ka3 c2 73. Ka4 c1=Q 74. Kb5 Nd5 75. Ka6 Qc4+ 76. Kxa5 Qb4+ 77. Ka6 Qb6#) 63. Bb5 {[%emt 0:00:32]} c3 {[%emt 0:00:09]} 64. Kd1 {[%emt 0:00:24]} e3 {[%emt 0:00:06]} 65. a5 {[%emt 0:01:33]} bxa5 {[%emt 0:00:16]} 66. Ba4 {[%emt 0:00:17]} e2+ {[%emt 0:00:18]} 67. Ke1 {[%emt 0:00:08]} Ke3 {[%emt 0:00:03]} 0-1

[Event "FIDE WCCC G12 2018"]
[Site "Santiago de Compostela"]
[Date "2018.11.08"]
[Round "4"]
[White "Savitha Shri B"]
[Black "Omonova, Umida"]
[Result "1/2-1/2"]
[ECO "A09"]
[WhiteElo "1745"]
[BlackElo "1854"]
[Annotator "NA"]
[PlyCount "71"]
[EventDate "2018.11.04"]
[EventType "swiss"]
[EventCountry "ESP"]
[SourceTitle "playchess.com"]
[Source "ChessBase"]
[SourceQuality "1"]
[TimeControl "40/5400+30:1800+30"]

{[%evp 8,63,-27,-46,-15,-52,-32,32767,-17,-44,-33,-33,26,0,43,44,48,39,32767,9,41,6,16,3,72,14,0,0,33,14,251,25,59,41,79,-10,41,46,30,37,203,32767,56,54,61,24,28,8,34,21,32767,32767,32767,27,25,23,22,0]} 1. Nf3 {[%emt 0:00:00]} d5 {[%emt 0:01:00]} 2. c4 {[%emt 0:00:00]} d4 {[%emt 0:04:11]} 3. e3 {[%emt 0:01:15]} c5 {[%emt 0:03:22]} 4. exd4 {[%emt 0:00:42]} cxd4 {[%emt 0:00:39]} 5. d3 {[%emt 0:00:01]} Nc6 {[%emt 0:01:02] A09: Reti-Eröffnung} 6. g3 {[%emt 0:02:04]} e5 {[%emt 0:02:35]} (6... g6 7. Bg2 Bg7 8. O-O Nf6 9. Na3 O-O 10. Nc2 a5 11. a3 Nd7 12. Rb1 a4 13. Bd2 Nc5 14. Bb4 Qb6 15. Bxc5 Qxc5 16. b4 axb3 17. Rxb3 {0-1 (50) Pantsulaia,L (2612)-Sethuraman,S (2646) Riadh 2017}) 7. Bg2 {[%emt 0:01:15]} Bd6 {[%emt 0:04:27] LiveBook: 17 Games} 8. Qe2 {[%emt 0:03:14]} Nge7 {[%emt 0:02:15]} 9. Nbd2 $146 {[%emt 0:04:34]} ({Vorgänger:} 9. O-O O-O 10. Na3 Ng6 11. Ng5 h6 12. Ne4 Be7 13. f4 exf4 14. Bxf4 Nxf4 15. gxf4 {1-0 (58) Golub,D (2184)-Koons,N (2262) Seattle 2014}) 9... Bf5 {[%emt 0:04:02]} (9... Bg4 $15) 10. a3 {[%emt 0:00:52]} a5 {[%emt 0:01:51]} 11. Nh4 {[%emt 0:04:57]} Be6 {[%emt 0:04:47]} 12. Ne4 {[%emt 0:04:03]} h6 {[%emt 0:03:07]} 13. f4 {[%emt 0:03:26]} exf4 {[%emt 0:03:20]} 14. Nxd6+ {[%emt 0:03:55]} Qxd6 {[%emt 0:00:03]} 15. Bxf4 {[%emt 0:00:01]} Qc5 {[%emt 0:00:30]} (15... Qd7 $11 {keeps the balance.}) 16. Nf3 {[%emt 0:07:23]} (16. O-O $5 {[%cal Rb2b4]} O-O 17. Bd2 $14) 16... Ng6 {[%emt 0:02:46]} 17. O-O {[%emt 0:02:34]} O-O {[%emt 0:04:10]} 18. Nd2 {[%emt 0:02:12]} Bf5 $2 {[%emt 0:02:39] [#]} (18... Nxf4 $11 19. Rxf4 Rae8) 19. Ne4 $2 {[%emt 0:01:13]} ({White has to play} 19. Qh5 $1 $18 Nxf4 20. Rxf4) 19... Bxe4 {[%emt 0:00:11]} 20. Bxe4 {[%emt 0:00:07]} Rae8 {[%emt 0:07:05]} 21. Qd2 {[%emt 0:02:24]} (21. Bd2 $14) 21... Nxf4 {[%emt 0:01:26]} 22. Rxf4 {[%emt 0:00:09]} Re5 {[%emt 0:15:19]} 23. Raf1 {[%emt 0:03:54]} Ne7 {[%emt 0:03:46]} ({Günstiger ist} 23... f6 $14) 24. Rg4 {[%emt 0:16:29]} Qd6 {[%emt 0:05:00]} (24... g5 $15 25. b4 (25. Bxb7 f5 $15) 25... Qc7) 25. Bxb7 {[%emt 0:09:41]} Nf5 {[%emt 0:02:20]} 26. Rgf4 {[%emt 0:07:28]} Ne3 {[%emt 0:00:09]} 27. R1f2 {[%emt 0:02:16]} f5 {[%emt 0:01:34]} (27... Qb6 $5 {[%cal Rb6b7]} 28. Bg2 Nxg2 29. Kxg2 Qc6+ 30. R4f3 Rd8 $16) 28. Bd5+ {[%emt 0:02:43]} Nxd5 {[%emt 0:02:31]} 29. Rxd4 {[%emt 0:00:56]} Rfe8 {[%emt 0:06:29]} 30. Rxd5 {[%emt 0:00:33]} Rxd5 {[%emt 0:00:06]} 31. cxd5 {[%emt 0:00:02]} Qxd5 {[%emt 0:00:07]} 32. Qf4 $11 {[%emt 0:02:52]} Re1+ {[%emt 0:04:03]} 33. Rf1 {[%emt 0:00:01]} Rxf1+ {[%emt 0:00:24]} 34. Qxf1 {[%emt 0:00:28]} Qd4+ {[%emt 0:00:05]} 35. Qf2 Qxd3 36. Qb6 1/2-1/2

[Event "FIDE WCCC G12 2018"]
[Site "Santiago de Compostela"]
[Date "2018.11.08"]
[Round "4"]
[White "Boramanikar Tanisha S"]
[Black "Lobo Pereira, Arami"]
[Result "1-0"]
[ECO "B21"]
[WhiteElo "1716"]
[BlackElo "1592"]
[Annotator "NA"]
[PlyCount "89"]
[EventDate "2018.11.04"]
[EventType "swiss"]
[EventCountry "ESP"]
[SourceTitle "playchess.com"]
[Source "ChessBase"]
[SourceQuality "1"]
[TimeControl "40/5400+30:1800+30"]

1. e4 {[%emt 0:00:00]} c5 {[%emt 0:00:00]} 2. d4 {[%emt 0:00:07]} cxd4 {[%emt 0:01:08]} 3. c3 {[%emt 0:00:21]} Nf6 {[%emt 0:00:45]} 4. e5 {[%emt 0:00:25]} Nd5 {[%emt 0:01:15]} 5. Bc4 {[%emt 0:00:52]} Qc7 {[%emt 0:01:12]} 6. Qe2 {[%emt 0:01:14]} Nb6 {[%emt 0:04:58]} 7. Bd3 {[%emt 0:00:53]} Nc6 {[%emt 0:03:34]} 8. Nf3 {[%emt 0:02:52]} d6 {[%emt 0:00:34]} 9. Bf4 {[%emt 0:06:04]} e6 {[%emt 0:03:23]} 10. cxd4 {[%emt 0:06:20]} Nd5 {[%emt 0:03:10]} 11. Bg3 {[%emt 0:07:24]} Be7 {[%emt 0:01:31]} 12. O-O {[%emt 0:03:23]} O-O {[%emt 0:02:53]} 13. Be4 {[%emt 0:05:04]} dxe5 {[%emt 0:08:42]} 14. Nxe5 {[%emt 0:06:44]} Nxe5 {[%emt 0:03:39]} 15. Bxe5 {[%emt 0:01:43]} Bd6 {[%emt 0:00:56]} 16. Na3 {[%emt 0:10:06]} Bxe5 {[%emt 0:01:54]} 17. dxe5 {[%emt 0:00:14]} Nf4 {[%emt 0:01:31]} 18. Qe3 {[%emt 0:01:45]} Ng6 {[%emt 0:01:00]} 19. f4 {[%emt 0:01:22]} Bd7 {[%emt 0:01:02]} 20. Rac1 {[%emt 0:01:16]} Qa5 {[%emt 0:01:14]} 21. Bxb7 {[%emt 0:06:41]} Rab8 {[%emt 0:00:23]} 22. Be4 {[%emt 0:00:44]} Qb4 {[%emt 0:03:15]} 23. Bxg6 {[%emt 0:14:28]} hxg6 {[%emt 0:00:18]} 24. Qxa7 {[%emt 0:01:32]} Bb5 {[%emt 0:01:00]} 25. Nxb5 {[%emt 0:02:47]} Rxb5 {[%emt 0:00:20]} 26. b3 {[%emt 0:02:33]} Ra5 {[%emt 0:02:23]} 27. Qf2 {[%emt 0:00:33]} Rfa8 {[%emt 0:02:01]} 28. Rc2 {[%emt 0:01:12]} Ra3 {[%emt 0:10:08]} 29. Rfc1 {[%emt 0:02:49]} Qb7 {[%emt 0:02:28]} 30. Rc7 {[%emt 0:03:55]} Qb8 {[%emt 0:02:17]} 31. R7c2 {[%emt 0:02:03]} Qb7 {[%emt 0:07:17]} 32. Rd1 {[%emt 0:00:58]} Qa6 {[%emt 0:02:58]} 33. Rdd2 {[%emt 0:01:53]} Qa5 {[%emt 0:04:06]} 34. Qd4 {[%emt 0:02:17]} Kh7 {[%emt 0:01:58]} 35. h3 {[%emt 0:00:50]} Ra7 {[%emt 0:02:29]} 36. Qf2 {[%emt 0:01:41]} Ra8 {[%emt 0:00:38]} 37. Qh4+ {[%emt 0:00:32]} Kg8 {[%emt 0:00:21]} 38. Qe7 {[%emt 0:00:26]} Qb6+ {[%emt 0:02:02]} 39. Kh2 {[%emt 0:00:30]} R3a7 {[%emt 0:01:04]} 40. Qd6 {[%emt 0:00:00]} Qa5 {[%emt 0:00:00]} 41. Rc5 {[%emt 0:03:55]} Qa3 {[%emt 0:02:27]} 42. Rc4 {[%emt 0:02:40]} Qa5 {[%emt 0:02:00]} 43. Ra4 {[%emt 0:01:07]} Qb5 {[%emt 0:00:36]} 44. Rxa7 {[%emt 0:00:37]} Rxa7 {[%emt 0:00:07]} 45. Qd8+ {[%emt 0:00:09]} 1-0

[Event "FIDE WCCC G12 2018"]
[Site "Santiago de Compostela"]
[Date "2018.11.08"]
[Round "4"]
[White "Bravo Mallco, Kate Azumi"]
[Black "Oz, Irem Ezra"]
[Result "0-1"]
[ECO "B42"]
[WhiteElo "1698"]
[BlackElo "1564"]
[Annotator "NA RC"]
[PlyCount "106"]
[EventDate "2018.11.04"]
[EventType "swiss"]
[EventCountry "ESP"]
[SourceTitle "playchess.com"]
[Source "ChessBase"]
[SourceQuality "1"]
[TimeControl "40/5400+30:1800+30"]

1. e4 {[%emt 0:00:00]} c5 {[%emt 0:00:00]} 2. Nf3 {[%emt 0:00:00]} e6 {[%emt 0:00:14]} 3. d4 {[%emt 0:00:00]} cxd4 {[%emt 0:00:24]} 4. Nxd4 {[%emt 0:00:00]} a6 {[%emt 0:00:31]} 5. Bd3 {[%emt 0:00:34]} Bc5 {[%emt 0:00:40]} 6. Nb3 {[%emt 0:00:28]} Ba7 {[%emt 0:00:20]} 7. O-O {[%emt 0:01:01]} Ne7 {[%emt 0:00:37]} 8. c4 {[%emt 0:01:35]} Nbc6 {[%emt 0:01:31]} 9. Qe2 {[%emt 0:09:19]} e5 {[%emt 0:01:33]} 10. Kh1 {[%emt 0:07:16]} O-O {[%emt 0:05:02]} 11. f4 {[%emt 0:02:40]} exf4 {[%emt 0:00:35]} 12. Bxf4 {[%emt 0:00:21]} d6 {[%emt 0:01:36]} 13. Nc3 {[%emt 0:02:28]} Ng6 {[%emt 0:01:04]} 14. Rad1 {[%emt 0:06:38]} Nxf4 {[%emt 0:02:40]} 15. Rxf4 {[%emt 0:00:07]} Be6 {[%emt 0:02:15]} 16. Nd5 {[%emt 0:11:44]} Ne5 {[%emt 0:08:37]} 17. Bb1 {[%emt 0:19:41]} Kh8 {[%emt 0:06:14]} 18. Nd2 {[%emt 0:05:58]} Rc8 {[%emt 0:08:34]} 19. h3 {[%emt 0:03:48]} Re8 {[%emt 0:02:40]} 20. b3 {[%emt 0:06:01]} Ng6 {[%emt 0:02:56]} 21. Rff1 {[%emt 0:01:14]} Bxd5 {[%emt 0:01:23]} 22. cxd5 {[%emt 0:00:15]} Ne5 {[%emt 0:01:03]} 23. Qh5 {[%emt 0:07:58]} Qd7 {[%emt 0:04:59]} 24. Nc4 {[%emt 0:03:34]} f6 {[%emt 0:02:23]} 25. Nd2 {[%emt 0:06:15]} Kg8 {[%emt 0:03:20]} 26. Nf3 {[%emt 0:01:16]} Nxf3 {[%emt 0:01:13]} 27. Qxf3 {[%emt 0:02:08]} Rc7 {[%emt 0:03:27]} 28. Qd3 {[%emt 0:00:46]} Re5 {[%emt 0:01:16]} 29. Rc1 {[%emt 0:00:09]} Rxc1 {[%emt 0:01:01]} 30. Rxc1 {[%emt 0:00:03]} Bc5 {[%emt 0:00:23]} 31. Qd2 {[%emt 0:01:22]} Re8 {[%emt 0:01:17]} 32. b4 {[%emt 0:00:03]} Bb6 {[%emt 0:00:47]} 33. Qc2 {[%emt 0:00:04]} g6 {[%emt 0:00:57]} 34. Rf1 {[%emt 0:01:09]} Kg7 {[%emt 0:01:09]} 35. Qc3 {[%emt 0:00:33]} Qe7 {[%emt 0:01:03]} 36. a4 {[%emt 0:00:48]} Qe5 {[%emt 0:01:00]} 37. Qc4 {[%emt 0:00:34]} Re7 {[%emt 0:01:33]} 38. Qd3 {[%emt 0:00:37]} Rc7 {[%emt 0:00:25]} 39. Qd2 {[%emt 0:00:29]} Rc4 {[%emt 0:07:30]} 40. Rc1 {[%emt 0:00:00]} Qd4 {[%emt 0:00:00]} 41. Qf4 {[%emt 0:11:59]} g5 {[%emt 0:02:44]} 42. Qf1 {[%emt 0:03:55]} Rxc1 {[%emt 0:01:04]} 43. Qxc1 {[%emt 0:00:04]} Qxb4 {[%emt 0:00:49]} 44. Qd1 {[%emt 0:02:34]} Qc5 {[%emt 0:01:43]} 45. Kh2 {[%emt 0:02:41]} Ba7 {[%emt 0:02:19]} 46. Bd3 {[%emt 0:03:34]} b5 {[%emt 0:01:27]} 47. axb5 {[%emt 0:00:58]} axb5 {[%emt 0:00:48]} 48. h4 {[%emt 0:01:28]} h6 {[%emt 0:00:30]} 49. hxg5 {[%emt 0:00:47]} hxg5 {[%emt 0:00:07]} 50. Qa1 {[%emt 0:06:32]} b4 {[%emt 0:00:22]} 51. e5 {[%emt 0:01:09]} fxe5 {[%emt 0:00:23]} 52. Qb1 {[%emt 0:00:49]} Qd4 {[%emt 0:01:38]} 53. Bf5 {[%emt 0:00:27]} Kf6 {[%emt 0:03:38]} 0-1